[Event "Early-Titled-Tuesday-Blitz-February-06-2024"]
[Site "Chess.com"]
[Date "2024.02.06"]
[Round "4"]
[White "Arimin1329"]
[Black "Bilan_Danila"]
[Result "0-1"]
[WhiteElo "2417"]
[BlackElo "2613"]
[TimeControl "180+1"]
[EndTime "8:38:09 PST"]
[Termination "Bilan_Danila won by resignation"]

1. Nf3 {[%clk 0:02:59.9]} 1... d5 {[%clk 0:02:59.6]} 2. g3 {[%clk 0:03:00.3]}
2... Nf6 {[%clk 0:02:59.6]} 3. Bg2 {[%clk 0:03:00.8]} 3... Bg4 {[%clk
0:02:59.6]} 4. O-O {[%clk 0:03:00.4]} 4... e6 {[%clk 0:02:59]} 5. c4 {[%clk
0:02:59.3]} 5... c6 {[%clk 0:02:59.3]} 6. d3 {[%clk 0:02:54.1]} 6... Nbd7 {[%clk
0:02:57.8]} 7. Nc3 {[%clk 0:02:53.4]} 7... Bc5 {[%clk 0:02:52.6]} 8. e4 {[%clk
0:02:50.2]} 8... dxe4 {[%clk 0:02:35.1]} 9. dxe4 {[%clk 0:02:48.3]} 9... Bxf3
{[%clk 0:02:29]} 10. Qxf3 {[%clk 0:02:40.4]} 10... Ne5 {[%clk 0:02:28.1]} 11.
Qe2 {[%clk 0:02:39.5]} 11... Qd3 {[%clk 0:02:25.8]} 12. Qxd3 {[%clk 0:02:29.2]}
12... Nxd3 {[%clk 0:02:26.7]} 13. Rb1 {[%clk 0:02:09.5]} 13... Ng4 {[%clk
0:02:11.6]} 14. Nd1 {[%clk 0:02:08.8]} 14... O-O-O {[%clk 0:01:50.1]} 15. h3
{[%clk 0:01:52.3]} 15... Nge5 {[%clk 0:01:14.8]} 16. b3 {[%clk 0:01:30.6]} 16...
Nxc1 {[%clk 0:01:14.6]} 17. Rxc1 {[%clk 0:01:30.6]} 17... Rd2 {[%clk 0:01:14.7]}
18. Nc3 {[%clk 0:01:25.8]} 18... Nd3 {[%clk 0:00:53.3]} 19. Rcd1 {[%clk
0:01:21.1]} 19... Rxf2 {[%clk 0:00:42.1]} 20. Kh2 {[%clk 0:00:54.2]} 20... Rxf1
{[%clk 0:00:33.7]} 21. Rxf1 {[%clk 0:00:55.1]} 21... Ne5 {[%clk 0:00:32.8]} 22.
Rd1 {[%clk 0:00:49.4]} 22... Rd8 {[%clk 0:00:30.3]} 23. Rxd8+ {[%clk 0:00:49.3]}
23... Kxd8 {[%clk 0:00:31.2]} 24. Na4 {[%clk 0:00:47.2]} 24... Bd4 {[%clk
0:00:29.7]} 25. g4 {[%clk 0:00:45.4]} 25... b5 {[%clk 0:00:28.1]} 0-1

[Event "Early-Titled-Tuesday-Blitz-February-06-2024"]
[Site "Chess.com"]
[Date "2024.02.06"]
[Round "4"]
[White "FabianoCaruana"]
[Black "PavelShkapenko"]
[Result "1-0"]
[WhiteElo "3046"]
[BlackElo "2774"]
[TimeControl "180+1"]
[EndTime "8:38:12 PST"]
[Termination "FabianoCaruana won by resignation"]

1. c4 {[%clk 0:03:00.9]} 1... e5 {[%clk 0:02:51.6]} 2. Nc3 {[%clk 0:03:00.1]}
2... Bb4 {[%clk 0:02:50.7]} 3. Nd5 {[%clk 0:02:59.3]} 3... Be7 {[%clk 0:02:50]}
4. Nf3 {[%clk 0:02:57.6]} 4... Nc6 {[%clk 0:02:35.2]} 5. d4 {[%clk 0:02:46.9]}
5... d6 {[%clk 0:02:33.5]} 6. e4 {[%clk 0:02:41.6]} 6... Nf6 {[%clk 0:02:29.9]}
7. Nxf6+ {[%clk 0:02:36.4]} 7... Bxf6 {[%clk 0:02:29.1]} 8. d5 {[%clk
0:02:36.8]} 8... Nd4 {[%clk 0:02:26.9]} 9. Nxd4 {[%clk 0:02:37]} 9... exd4
{[%clk 0:02:27.7]} 10. Bd3 {[%clk 0:02:37.6]} 10... O-O {[%clk 0:02:26.3]} 11.
O-O {[%clk 0:02:38.1]} 11... c5 {[%clk 0:02:27]} 12. f4 {[%clk 0:02:36.3]} 12...
g6 {[%clk 0:02:26.9]} 13. Bd2 {[%clk 0:02:35]} 13... Bg7 {[%clk 0:02:21.2]} 14.
Qf3 {[%clk 0:02:29.4]} 14... b5 {[%clk 0:02:21.1]} 15. cxb5 {[%clk 0:02:19.4]}
15... a6 {[%clk 0:02:21.4]} 16. a4 {[%clk 0:02:13.6]} 16... axb5 {[%clk
0:02:12.3]} 17. axb5 {[%clk 0:02:14.5]} 17... Bd7 {[%clk 0:02:12.6]} 18. b4
{[%clk 0:02:10.4]} 18... Qb6 {[%clk 0:01:53.5]} 19. bxc5 {[%clk 0:02:08.2]}
19... dxc5 {[%clk 0:01:50.8]} 20. e5 {[%clk 0:01:45.8]} 20... Bf5 {[%clk
0:01:15.6]} 21. Bxf5 {[%clk 0:01:41.8]} 21... gxf5 {[%clk 0:01:15.2]} 22. Qd3
{[%clk 0:01:34.9]} 22... Rad8 {[%clk 0:00:40.7]} 23. d6 {[%clk 0:01:29.1]} 23...
Rb8 {[%clk 0:00:39.5]} 24. Rfb1 {[%clk 0:01:26.4]} 24... f6 {[%clk 0:00:34.7]}
25. Ra6 {[%clk 0:01:22.5]} 25... Qb7 {[%clk 0:00:28]} 26. e6 {[%clk 0:01:20.8]}
26... Qd5 {[%clk 0:00:21.1]} 27. e7 {[%clk 0:01:03.3]} 27... Rfe8 {[%clk
0:00:21.3]} 28. Rc1 {[%clk 0:01:01.7]} 28... Rbc8 {[%clk 0:00:20.4]} 29. Qc4
{[%clk 0:01:00.7]} 29... Qxc4 {[%clk 0:00:19.5]} 30. Rxc4 {[%clk 0:01:01.6]}
30... Rb8 {[%clk 0:00:19.3]} 31. Rxc5 {[%clk 0:01:00.8]} 1-0

[Event "Early-Titled-Tuesday-Blitz-February-06-2024"]
[Site "Chess.com"]
[Date "2024.02.06"]
[Round "4"]
[White "ViralduS"]
[Black "ChessRespected"]
[Result "0-1"]
[WhiteElo "2726"]
[BlackElo "2548"]
[TimeControl "180+1"]
[EndTime "8:38:12 PST"]
[Termination "ChessRespected won by resignation"]

1. e4 {[%clk 0:02:59.5]} 1... e5 {[%clk 0:02:59.8]} 2. Nf3 {[%clk 0:02:52.6]}
2... Nc6 {[%clk 0:02:59.8]} 3. d4 {[%clk 0:02:49.8]} 3... exd4 {[%clk
0:03:00.7]} 4. Bc4 {[%clk 0:02:50.1]} 4... Nf6 {[%clk 0:03:00.4]} 5. e5 {[%clk
0:02:45.5]} 5... d5 {[%clk 0:03:00.3]} 6. Bb5 {[%clk 0:02:45.6]} 6... Ne4 {[%clk
0:02:53.4]} 7. Nxd4 {[%clk 0:02:44]} 7... Bc5 {[%clk 0:02:48.3]} 8. O-O {[%clk
0:02:36.5]} 8... O-O {[%clk 0:02:45.4]} 9. Bxc6 {[%clk 0:02:33.7]} 9... bxc6
{[%clk 0:02:43.6]} 10. f3 {[%clk 0:02:32.1]} 10... f6 {[%clk 0:02:25.4]} 11.
fxe4 {[%clk 0:01:15.6]} 11... fxe5 {[%clk 0:02:24]} 12. Rxf8+ {[%clk 0:01:15.1]}
12... Qxf8 {[%clk 0:02:24.9]} 13. c3 {[%clk 0:01:14.1]} 13... exd4 {[%clk
0:02:16]} 14. cxd4 {[%clk 0:01:12.9]} 14... Bb6 {[%clk 0:02:14.5]} 15. e5 {[%clk
0:01:09]} 15... c5 {[%clk 0:02:10.7]} 16. Nc3 {[%clk 0:01:00.4]} 16... Be6
{[%clk 0:01:57.9]} 17. Be3 {[%clk 0:01:00]} 17... cxd4 {[%clk 0:01:57.1]} 18.
Bxd4 {[%clk 0:01:00.4]} 18... c5 {[%clk 0:01:57.2]} 19. Bf2 {[%clk 0:00:57.1]}
19... d4 {[%clk 0:01:49]} 20. Ne4 {[%clk 0:00:56.6]} 20... Qf5 {[%clk
0:01:48.3]} 21. Qf3 {[%clk 0:00:51.2]} 21... Qxf3 {[%clk 0:01:41.1]} 22. gxf3
{[%clk 0:00:51.2]} 22... Bd5 {[%clk 0:01:41.5]} 23. Nd2 {[%clk 0:00:41.3]} 23...
Re8 {[%clk 0:01:37.7]} 24. f4 {[%clk 0:00:36.6]} 24... g5 {[%clk 0:01:36.8]} 25.
Bg3 {[%clk 0:00:29.2]} 25... c4 {[%clk 0:01:33.9]} 26. fxg5 {[%clk 0:00:15.2]}
26... c3 {[%clk 0:01:34]} 27. Nb3 {[%clk 0:00:12.7]} 27... d3+ {[%clk
0:01:28.3]} 28. Kf1 {[%clk 0:00:13]} 28... Bxb3 {[%clk 0:01:19.3]} 29. axb3
{[%clk 0:00:11.8]} 29... c2 {[%clk 0:01:19.4]} 30. Ke1 {[%clk 0:00:11.7]} 30...
Be3 {[%clk 0:01:17.4]} 31. h4 {[%clk 0:00:08.4]} 31... c1=Q+ {[%clk 0:01:16.2]}
32. Rxc1 {[%clk 0:00:08.3]} 32... d2+ {[%clk 0:01:16.5]} 33. Kd1 {[%clk
0:00:09.2]} 33... dxc1=Q+ {[%clk 0:01:16.4]} 0-1

[Event "Early-Titled-Tuesday-Blitz-February-06-2024"]
[Site "Chess.com"]
[Date "2024.02.06"]
[Round "4"]
[White "Hasangatin_Ramil"]
[Black "ilushka"]
[Result "1-0"]
[WhiteElo "2670"]
[BlackElo "2420"]
[TimeControl "180+1"]
[EndTime "8:38:12 PST"]
[Termination "Hasangatin_Ramil won by resignation"]

1. e4 {[%clk 0:03:00.9]} 1... e6 {[%clk 0:03:00.2]} 2. d3 {[%clk 0:02:54.6]}
2... d5 {[%clk 0:03:00.4]} 3. Qe2 {[%clk 0:02:55.2]} 3... dxe4 {[%clk
0:03:00.2]} 4. dxe4 {[%clk 0:02:56.1]} 4... e5 {[%clk 0:03:00.5]} 5. Nf3 {[%clk
0:02:56.9]} 5... Nc6 {[%clk 0:02:59.8]} 6. c3 {[%clk 0:02:57.8]} 6... Bc5 {[%clk
0:02:57.5]} 7. Qc2 {[%clk 0:02:58.1]} 7... a5 {[%clk 0:02:56.2]} 8. Bb5 {[%clk
0:02:58.4]} 8... Qe7 {[%clk 0:02:55.4]} 9. O-O {[%clk 0:02:58.7]} 9... Bd7
{[%clk 0:02:55.3]} 10. a4 {[%clk 0:02:58.2]} 10... f6 {[%clk 0:02:43.9]} 11.
Nbd2 {[%clk 0:02:57.3]} 11... Nh6 {[%clk 0:02:43]} 12. Nb3 {[%clk 0:02:55.7]}
12... Bb6 {[%clk 0:02:41.9]} 13. Bxh6 {[%clk 0:02:55.1]} 13... gxh6 {[%clk
0:02:42.8]} 14. Nh4 {[%clk 0:02:54.9]} 14... O-O-O {[%clk 0:02:35.5]} 15. Nf5
{[%clk 0:02:52.2]} 15... Bxf5 {[%clk 0:02:32.9]} 16. exf5 {[%clk 0:02:52.2]}
16... Rhg8 {[%clk 0:02:17.2]} 17. Bxc6 {[%clk 0:02:51.4]} 17... bxc6 {[%clk
0:02:16.7]} 18. Nd2 {[%clk 0:02:50.7]} 18... Qg7 {[%clk 0:02:09]} 19. g3 {[%clk
0:02:49.8]} 19... h5 {[%clk 0:02:09.1]} 20. Nc4 {[%clk 0:02:47.8]} 20... h4
{[%clk 0:02:03.5]} 21. Qe4 {[%clk 0:02:41.3]} 21... hxg3 {[%clk 0:01:40]} 22.
Nxb6+ {[%clk 0:02:40.2]} 22... cxb6 {[%clk 0:01:40.9]} 23. Qxc6+ {[%clk
0:02:39.9]} 23... Qc7 {[%clk 0:01:40.3]} 24. Qa8+ {[%clk 0:02:24.8]} 24... Qb8
{[%clk 0:01:40.4]} 25. Qc6+ {[%clk 0:02:14.3]} 25... Qc7 {[%clk 0:01:40.3]} 26.
Qe6+ {[%clk 0:02:14.9]} 26... Kb7 {[%clk 0:01:34.5]} 27. hxg3 {[%clk 0:02:13.9]}
27... h5 {[%clk 0:01:18.9]} 28. Qxf6 {[%clk 0:02:12.1]} 28... Rdf8 {[%clk
0:00:57.8]} 29. Qh4 {[%clk 0:02:06]} 29... Rxf5 {[%clk 0:00:57]} 30. Qe4+ {[%clk
0:02:06]} 30... Qc6 {[%clk 0:00:51.9]} 31. Qxf5 {[%clk 0:02:06.9]} 31... h4
{[%clk 0:00:51.6]} 32. g4 {[%clk 0:02:03.3]} 32... h3 {[%clk 0:00:40.4]} 33. f3
{[%clk 0:02:03]} 33... Qc5+ {[%clk 0:00:31.4]} 34. Kh2 {[%clk 0:02:01.7]} 34...
Rd8 {[%clk 0:00:30.7]} 35. Qe4+ {[%clk 0:01:58]} 35... Ka7 {[%clk 0:00:28.9]}
36. Rae1 {[%clk 0:01:58.4]} 36... Qc7 {[%clk 0:00:09.6]} 37. Re2 {[%clk
0:01:57]} 37... Rf8 {[%clk 0:00:07.9]} 38. Qxe5 {[%clk 0:01:52.4]} 38... Qc4
{[%clk 0:00:08.5]} 39. Qe7+ {[%clk 0:01:51.2]} 39... Ka6 {[%clk 0:00:08.5]} 40.
Qe4 {[%clk 0:01:44.1]} 40... Qc7+ {[%clk 0:00:05.8]} 41. f4 {[%clk 0:01:44.6]}
41... Qd6 {[%clk 0:00:03.6]} 42. Rf3 {[%clk 0:01:42.8]} 42... Qd1 {[%clk
0:00:03.5]} 43. Qd3+ {[%clk 0:01:42.8]} 1-0

[Event "Early-Titled-Tuesday-Blitz-February-06-2024"]
[Site "Chess.com"]
[Date "2024.02.06"]
[Round "4"]
[White "Darius321"]
[Black "JuniorJumper"]
[Result "1/2-1/2"]
[WhiteElo "2379"]
[BlackElo "2513"]
[TimeControl "180+1"]
[EndTime "8:38:14 PST"]
[Termination "Game drawn by repetition"]

1. e4 {[%clk 0:03:00.9]} 1... e5 {[%clk 0:02:55.9]} 2. Nf3 {[%clk 0:03:00.6]}
2... Nc6 {[%clk 0:02:56.2]} 3. d4 {[%clk 0:02:59.6]} 3... exd4 {[%clk
0:02:47.8]} 4. Nxd4 {[%clk 0:03:00.5]} 4... Nf6 {[%clk 0:02:47.4]} 5. Nc3 {[%clk
0:02:55.8]} 5... Bb4 {[%clk 0:02:46]} 6. Nxc6 {[%clk 0:02:54.5]} 6... bxc6
{[%clk 0:02:46.9]} 7. Bd3 {[%clk 0:02:38.2]} 7... d5 {[%clk 0:02:45.4]} 8. O-O
{[%clk 0:02:29.9]} 8... O-O {[%clk 0:02:43]} 9. e5 {[%clk 0:02:26.3]} 9... Ng4
{[%clk 0:02:39.5]} 10. Bf4 {[%clk 0:02:24.5]} 10... Re8 {[%clk 0:02:20.8]} 11.
Re1 {[%clk 0:01:47.1]} 11... Bc5 {[%clk 0:02:11.7]} 12. Bg3 {[%clk 0:01:47.2]}
12... Qg5 {[%clk 0:02:01.9]} 13. Na4 {[%clk 0:01:41.2]} 13... Nxf2 {[%clk
0:01:18.5]} 14. Bxf2 {[%clk 0:01:33.3]} 14... Bxf2+ {[%clk 0:01:19.4]} 15. Kxf2
{[%clk 0:01:27.6]} 15... Qf4+ {[%clk 0:01:17.4]} 16. Kg1 {[%clk 0:01:27.2]}
16... Qxa4 {[%clk 0:01:16.7]} 17. Rf1 {[%clk 0:01:19.6]} 17... Qd4+ {[%clk
0:01:12.7]} 18. Kh1 {[%clk 0:01:18.8]} 18... Qxe5 {[%clk 0:01:13]} 19. Qf3
{[%clk 0:01:10.6]} 19... Be6 {[%clk 0:01:04.1]} 20. Rae1 {[%clk 0:01:08.5]}
20... Qxb2 {[%clk 0:00:50.4]} 21. Rxe6 {[%clk 0:00:48.2]} 21... fxe6 {[%clk
0:00:44.2]} 22. Bxh7+ {[%clk 0:00:48.1]} 22... Kxh7 {[%clk 0:00:26.1]} 23. Qh5+
{[%clk 0:00:47.5]} 23... Kg8 {[%clk 0:00:26.8]} 24. Qf7+ {[%clk 0:00:47.5]}
24... Kh7 {[%clk 0:00:27.4]} 25. Qh5+ {[%clk 0:00:47.7]} 25... Kg8 {[%clk
0:00:27.9]} 26. Qf7+ {[%clk 0:00:45.4]} 26... Kh7 {[%clk 0:00:28.1]} 27. Qh5+
{[%clk 0:00:45.3]} 1/2-1/2

[Event "Early-Titled-Tuesday-Blitz-February-06-2024"]
[Site "Chess.com"]
[Date "2024.02.06"]
[Round "4"]
[White "lachesisQ"]
[Black "Yeritsyaan"]
[Result "1-0"]
[WhiteElo "3080"]
[BlackElo "2631"]
[TimeControl "180+1"]
[EndTime "8:38:18 PST"]
[Termination "lachesisQ won by resignation"]

1. e4 {[%clk 0:03:00.9]} 1... c6 {[%clk 0:02:56.8]} 2. d4 {[%clk 0:03:00.3]}
2... d5 {[%clk 0:02:57.4]} 3. e5 {[%clk 0:03:01.2]} 3... Bf5 {[%clk 0:02:57]} 4.
Nf3 {[%clk 0:03:01.1]} 4... e6 {[%clk 0:02:56.4]} 5. Be2 {[%clk 0:03:01.5]} 5...
h6 {[%clk 0:02:54.1]} 6. O-O {[%clk 0:03:01.1]} 6... Nd7 {[%clk 0:02:51]} 7. c3
{[%clk 0:03:00.4]} 7... Ne7 {[%clk 0:02:50.2]} 8. Nbd2 {[%clk 0:02:58.4]} 8...
a5 {[%clk 0:02:48.4]} 9. a4 {[%clk 0:02:58]} 9... g5 {[%clk 0:02:46.4]} 10. Ne1
{[%clk 0:02:57.6]} 10... Qc7 {[%clk 0:02:35.4]} 11. Bd3 {[%clk 0:02:56.8]} 11...
Bxd3 {[%clk 0:01:45.8]} 12. Nxd3 {[%clk 0:02:55.6]} 12... Bg7 {[%clk 0:01:43.3]}
13. f4 {[%clk 0:02:49.5]} 13... Nf5 {[%clk 0:01:25]} 14. Qe2 {[%clk 0:02:26.9]}
14... O-O-O {[%clk 0:01:21.6]} 15. fxg5 {[%clk 0:02:26.1]} 15... hxg5 {[%clk
0:01:20.9]} 16. Nf3 {[%clk 0:02:26.8]} 16... g4 {[%clk 0:01:05.2]} 17. Ng5
{[%clk 0:02:25.4]} 17... Nf8 {[%clk 0:01:01.7]} 18. Qxg4 {[%clk 0:02:23.6]}
18... Rh4 {[%clk 0:00:53]} 19. Qf3 {[%clk 0:01:47.5]} 19... Ng6 {[%clk
0:00:52.9]} 20. g4 {[%clk 0:01:47.4]} 20... Nh6 {[%clk 0:00:40.7]} 21. h3 {[%clk
0:01:47.4]} 21... Rh8 {[%clk 0:00:34.5]} 22. Be3 {[%clk 0:01:44]} 22... Qe7
{[%clk 0:00:27]} 23. Rf2 {[%clk 0:01:30.7]} 23... Nf8 {[%clk 0:00:13.1]} 24.
Raf1 {[%clk 0:01:29.3]} 24... Ng6 {[%clk 0:00:08.7]} 25. Qg2 {[%clk 0:01:09.7]}
25... Rf8 {[%clk 0:00:06.4]} 26. Nh7 {[%clk 0:01:06.4]} 26... Rh8 {[%clk
0:00:05.9]} 27. Bg5 {[%clk 0:01:06.5]} 27... f6 {[%clk 0:00:02.4]} 28. exf6
{[%clk 0:01:05.2]} 1-0

[Event "Early-Titled-Tuesday-Blitz-February-06-2024"]
[Site "Chess.com"]
[Date "2024.02.06"]
[Round "4"]
[White "chezzgirl04"]
[Black "iJueles"]
[Result "0-1"]
[WhiteElo "2180"]
[BlackElo "2453"]
[TimeControl "180+1"]
[EndTime "8:38:20 PST"]
[Termination "iJueles won on time"]

1. e4 {[%clk 0:02:46.2]} 1... c6 {[%clk 0:02:58.2]} 2. d4 {[%clk 0:02:38]} 2...
d5 {[%clk 0:02:59.1]} 3. e5 {[%clk 0:02:37.5]} 3... Bf5 {[%clk 0:02:58.9]} 4. g4
{[%clk 0:02:34]} 4... Be4 {[%clk 0:02:55.1]} 5. f3 {[%clk 0:02:33]} 5... Bg6
{[%clk 0:02:55.8]} 6. h4 {[%clk 0:02:32.6]} 6... h5 {[%clk 0:02:55.5]} 7. Bd3
{[%clk 0:02:27.7]} 7... Bxd3 {[%clk 0:02:52.4]} 8. Qxd3 {[%clk 0:02:27.4]} 8...
e6 {[%clk 0:02:53.1]} 9. g5 {[%clk 0:02:26.8]} 9... Ne7 {[%clk 0:02:52.1]} 10.
Nh3 {[%clk 0:02:26.1]} 10... g6 {[%clk 0:02:51.5]} 11. Nc3 {[%clk 0:02:16.5]}
11... Nf5 {[%clk 0:02:51.6]} 12. Nf4 {[%clk 0:02:04]} 12... a6 {[%clk
0:02:46.3]} 13. Nce2 {[%clk 0:02:04.1]} 13... c5 {[%clk 0:02:45.3]} 14. Rh3
{[%clk 0:01:44.5]} 14... Nc6 {[%clk 0:02:44.5]} 15. c3 {[%clk 0:01:42.5]} 15...
Qb6 {[%clk 0:02:43.4]} 16. Ng3 {[%clk 0:01:41.3]} 16... cxd4 {[%clk 0:02:33.3]}
17. Nxf5 {[%clk 0:01:40.1]} 17... gxf5 {[%clk 0:02:34.1]} 18. g6 {[%clk
0:01:37.4]} 18... dxc3 {[%clk 0:02:30.4]} 19. gxf7+ {[%clk 0:01:34.3]} 19...
Kxf7 {[%clk 0:02:30.3]} 20. bxc3 {[%clk 0:01:32.3]} 20... Bh6 {[%clk 0:02:12.4]}
21. Nxd5 {[%clk 0:01:20.3]} 21... Qg1+ {[%clk 0:02:11.4]} 22. Ke2 {[%clk
0:01:08.6]} 22... Qg2+ {[%clk 0:02:10.4]} 23. Ke1 {[%clk 0:01:01.6]} 23... Qxh3
{[%clk 0:02:01.5]} 24. Rb1 {[%clk 0:00:47.9]} 24... Qh1+ {[%clk 0:01:46]} 25.
Kf2 {[%clk 0:00:40.8]} 25... Qxh4+ {[%clk 0:01:43.4]} 26. Kf1 {[%clk 0:00:37.8]}
26... Qh1+ {[%clk 0:01:42.1]} 27. Kf2 {[%clk 0:00:37.9]} 27... Qh2+ {[%clk
0:01:35.8]} 28. Kf1 {[%clk 0:00:38]} 28... Rab8 {[%clk 0:01:22.3]} 29. Qc4
{[%clk 0:00:21.3]} 29... Rhg8 {[%clk 0:01:10.8]} 0-1

[Event "Early-Titled-Tuesday-Blitz-February-06-2024"]
[Site "Chess.com"]
[Date "2024.02.06"]
[Round "4"]
[White "ChEsper99"]
[Black "UK_23"]
[Result "0-1"]
[WhiteElo "2203"]
[BlackElo "2417"]
[TimeControl "180+1"]
[EndTime "8:38:20 PST"]
[Termination "UK_23 won by resignation"]

1. e4 {[%clk 0:03:00]} 1... e5 {[%clk 0:02:56.7]} 2. Nf3 {[%clk 0:02:56.5]} 2...
Nc6 {[%clk 0:02:55.3]} 3. Bc4 {[%clk 0:02:55.4]} 3... Nf6 {[%clk 0:02:54.4]} 4.
d3 {[%clk 0:02:55.1]} 4... Be7 {[%clk 0:02:54.3]} 5. O-O {[%clk 0:02:54.3]} 5...
O-O {[%clk 0:02:54.4]} 6. c3 {[%clk 0:02:51.5]} 6... d5 {[%clk 0:02:54.3]} 7.
exd5 {[%clk 0:02:51.1]} 7... Nxd5 {[%clk 0:02:55.2]} 8. h3 {[%clk 0:02:47.8]}
8... Nb6 {[%clk 0:02:45.8]} 9. Bb3 {[%clk 0:02:45.1]} 9... Bf5 {[%clk
0:02:44.9]} 10. Bc2 {[%clk 0:02:44.3]} 10... Bd6 {[%clk 0:02:41.9]} 11. Nbd2
{[%clk 0:02:42.6]} 11... Qd7 {[%clk 0:02:41.1]} 12. Ne4 {[%clk 0:02:42]} 12...
Rae8 {[%clk 0:02:40.6]} 13. Be3 {[%clk 0:02:27.6]} 13... Bg6 {[%clk 0:02:36.1]}
14. Nxd6 {[%clk 0:02:14.1]} 14... cxd6 {[%clk 0:02:35.8]} 15. d4 {[%clk
0:02:12]} 15... Bxc2 {[%clk 0:02:20.5]} 16. Qxc2 {[%clk 0:02:12.9]} 16... e4
{[%clk 0:02:19.4]} 17. Nd2 {[%clk 0:02:06.1]} 17... f5 {[%clk 0:02:17.8]} 18.
Bf4 {[%clk 0:02:00.2]} 18... Nd5 {[%clk 0:02:15.3]} 19. Bh2 {[%clk 0:01:56.2]}
19... Kh8 {[%clk 0:02:03.1]} 20. Rae1 {[%clk 0:01:56.1]} 20... e3 {[%clk
0:01:58.5]} 21. Nc4 {[%clk 0:01:43.8]} 21... f4 {[%clk 0:01:52.4]} 22. fxe3
{[%clk 0:01:41.1]} 22... b5 {[%clk 0:01:34.1]} 23. e4 {[%clk 0:01:18.6]} 23...
bxc4 {[%clk 0:01:28.2]} 24. exd5 {[%clk 0:01:17.9]} 24... Ne7 {[%clk 0:01:28.9]}
25. Bxf4 {[%clk 0:00:48.4]} 25... Nxd5 {[%clk 0:01:28.3]} 26. Bd2 {[%clk
0:00:48.7]} 26... a5 {[%clk 0:01:19.4]} 27. Rxf8+ {[%clk 0:00:45.3]} 27... Rxf8
{[%clk 0:01:18.9]} 28. Qe4 {[%clk 0:00:45.8]} 28... Qb5 {[%clk 0:01:14.7]} 29.
Bc1 {[%clk 0:00:24.2]} 29... Nf6 {[%clk 0:01:09]} 30. Qe7 {[%clk 0:00:22.3]}
30... Re8 {[%clk 0:01:06]} 0-1

[Event "Early-Titled-Tuesday-Blitz-February-06-2024"]
[Site "Chess.com"]
[Date "2024.02.06"]
[Round "4"]
[White "SARGISMV"]
[Black "Szachulec75"]
[Result "1-0"]
[WhiteElo "2461"]
[BlackElo "2218"]
[TimeControl "180+1"]
[EndTime "8:38:21 PST"]
[Termination "SARGISMV won by resignation"]

1. d4 {[%clk 0:02:56.4]} 1... Nf6 {[%clk 0:02:59.4]} 2. Nf3 {[%clk 0:02:54.3]}
2... d6 {[%clk 0:02:59.9]} 3. c4 {[%clk 0:02:49.6]} 3... g6 {[%clk 0:02:59.5]}
4. Nc3 {[%clk 0:02:45.8]} 4... Bg7 {[%clk 0:02:59.8]} 5. Bf4 {[%clk 0:02:37.3]}
5... O-O {[%clk 0:02:53.5]} 6. e3 {[%clk 0:02:30.6]} 6... Nbd7 {[%clk 0:02:53]}
7. h3 {[%clk 0:02:30.4]} 7... b6 {[%clk 0:02:52]} 8. Be2 {[%clk 0:02:27.6]} 8...
Bb7 {[%clk 0:02:52.4]} 9. O-O {[%clk 0:02:22]} 9... Re8 {[%clk 0:02:52.8]} 10.
Bh2 {[%clk 0:02:08.8]} 10... e5 {[%clk 0:02:52]} 11. b4 {[%clk 0:02:03.2]} 11...
a5 {[%clk 0:02:49.6]} 12. a3 {[%clk 0:01:59.8]} 12... Ne4 {[%clk 0:02:48.2]} 13.
Nxe4 {[%clk 0:01:48.9]} 13... Bxe4 {[%clk 0:02:48.4]} 14. d5 {[%clk 0:01:49.3]}
14... g5 {[%clk 0:02:39.2]} 15. Nd2 {[%clk 0:01:44.7]} 15... Bg6 {[%clk
0:02:39.2]} 16. e4 {[%clk 0:01:40.9]} 16... f5 {[%clk 0:02:38]} 17. exf5 {[%clk
0:01:39.3]} 17... Bxf5 {[%clk 0:02:36.8]} 18. Bg4 {[%clk 0:01:22.7]} 18... Qf6
{[%clk 0:02:35.4]} 19. Bxf5 {[%clk 0:00:59.2]} 19... Qxf5 {[%clk 0:02:34.4]} 20.
f3 {[%clk 0:00:45.9]} 20... Qd3 {[%clk 0:02:29.6]} 21. Ne4 {[%clk 0:00:34.5]}
21... Qxd1 {[%clk 0:02:22.4]} 22. Rfxd1 {[%clk 0:00:32.7]} 22... h6 {[%clk
0:02:22.7]} 23. Kf1 {[%clk 0:00:29.3]} 23... Ra7 {[%clk 0:02:19.5]} 24. Bg1
{[%clk 0:00:24.9]} 24... Rea8 {[%clk 0:02:16.2]} 25. Rac1 {[%clk 0:00:21.8]}
25... axb4 {[%clk 0:02:15.3]} 26. axb4 {[%clk 0:00:22.7]} 26... Ra4 {[%clk
0:02:08.7]} 27. c5 {[%clk 0:00:21.9]} 27... Rxb4 {[%clk 0:01:57.4]} 28. cxd6
{[%clk 0:00:21.5]} 28... cxd6 {[%clk 0:01:57.6]} 29. Rc7 {[%clk 0:00:19.5]}
29... Nc5 {[%clk 0:01:56.4]} 30. Nxd6 {[%clk 0:00:19.6]} 30... e4 {[%clk
0:01:44.5]} 31. Bxc5 {[%clk 0:00:18.9]} 31... bxc5 {[%clk 0:01:43.7]} 32. Nxe4
{[%clk 0:00:19.2]} 32... Bd4 {[%clk 0:01:42]} 33. d6 {[%clk 0:00:18.4]} 33...
Rd8 {[%clk 0:01:32.7]} 34. d7 {[%clk 0:00:18.5]} 34... Kf7 {[%clk 0:01:29.4]}
35. Nxc5 {[%clk 0:00:18.6]} 35... Rc4 {[%clk 0:01:26.1]} 36. Ne6 {[%clk
0:00:16]} 36... Rxc7 {[%clk 0:01:21.4]} 37. Nxd8+ {[%clk 0:00:16.1]} 37... Ke7
{[%clk 0:01:17.6]} 38. Ne6 {[%clk 0:00:16]} 38... Rxd7 {[%clk 0:01:14.4]} 39.
Nxd4 {[%clk 0:00:15.7]} 1-0